bitfinex/quotes_SOLUSD_20241121
["timestamp","ask_amount","ask_price","bid_price","bid_amount"]
[1732191774265,38.12617343,243.72,243.7,0.5]
[1732191774466,0.41593877,243.72,243.7,0.5]
[1732191775077,0.41593877,243.72,243.7,38.21023466]
[1732191775278,0.41593877,243.72,243.7,0.5]
[1732191776182,0.41593877,243.72,243.71,4.1032]
[1732191777464,0.41593877,243.72,243.71,41.81343466]
[1732191778179,0.41593877,243.72,243.71,4.1032]
[1732191778565,0.41593877,243.72,243.71,41.81343466]
[1732191778768,0.41593877,243.72,243.71,65.59031866]
[1732191778984,0.41593877,243.72,243.71,41.81343466]
[1732191779288,0.41593877,243.72,243.71,65.59031866]
[1732191780274,0.41593877,243.72,243.71,103.30055332]
[1732191780682,0.41593877,243.72,243.71,65.59031866]
[1732191781370,0.41593877,243.72,243.71,4.1032]
[1732191781770,0.41593877,243.72,243.7,0.5]
[1732191781975,0.41593877,243.72,243.66,10.2601]
[1732191781976,37.71023466,243.71,243.66,0.5]
[1732191782198,37.71023466,243.67,243.64,0.5]
[1732191782376,37.71023466,243.67,243.66,0.5]
[1732191782699,0.41593877,243.72,243.7,0.5]
[1732191783592,0.41593877,243.72,243.71,41.81343466]
[1732191783972,0.41593877,243.72,243.71,4.1032]
[1732191784304,0.41593877,243.72,243.7,10.7584]
[1732191784305,0.41593877,243.72,243.7,0.5]
[1732191784897,42.22927343,243.72,243.63,0.5]
[1732191785098,37.71023466,243.68,243.63,4.6045]
[1732191785395,37.71023466,243.68,243.67,0.5]
[1732191785602,37.71023466,243.68,243.63,4.6045]
[1732191785779,37.71023466,243.68,243.67,0.5]
[1732191786174,38.12617343,243.72,243.67,0.5]
[1732191786570,0.41593877,243.72,243.67,0.5]
[1732191786801,0.41593877,243.72,243.71,0.5]
[1732191787788,0.41593877,243.72,243.68,10.7591]
[1732191787987,42.22927343,243.72,243.66,0.5]
[1732191788202,42.22927343,243.72,243.64,0.5]
[1732191788712,37.71023466,243.7,243.65,0.5]
[1732191788922,37.71023466,243.66,243.61,0.5]
[1732191789083,37.71023466,243.66,243.65,0.5]
[1732191789286,37.71023466,243.68,243.65,0.5]
[1732191789581,41.81433466,243.66,243.65,0.5]
[1732191789782,37.71023466,243.68,243.65,0.5]
[1732191790203,42.22917343,243.72,243.65,0.5]
[1732191790404,0.41593877,243.72,243.68,0.5]
[1732191790706,4.1032,243.71,243.7,0.5]
[1732191790883,38.12617343,243.72,243.7,0.5]
[1732191791194,42.22927343,243.72,243.68,0.5]
[1732191791503,42.22927343,243.72,243.6,14.3677]
[1732191791504,0.41593877,243.72,243.71,0.5]
[1732191791705,0.41593877,243.72,243.71,38.21023466]
[1732191793305,0.41593877,243.72,243.71,0.5]
[1732191794399,0.41593877,243.72,243.71,0.5]
[1732191796109,4.51903877,243.72,243.69,0.5]
[1732191796527,4.51903877,243.72,243.64,0.5]
[1732191796528,37.71023466,243.71,243.64,0.5]
[1732191796817,4.51903877,243.72,243.64,0.5]
[1732191796818,37.71023466,243.67,243.64,0.5]
[1732191797602,37.71023466,243.65,243.64,0.5]
[1732191797793,37.71023466,243.67,243.66,0.5]
[1732191798404,41.81413466,243.67,243.64,0.5]
[1732191798726,37.71023466,243.69,243.66,0.5]
[1732191800297,37.71023466,243.67,243.66,0.5]
[1732191800518,41.81413466,243.67,243.64,0.5]
[1732191801318,41.81393466,243.69,243.64,0.5]
[1732191801489,37.71023466,243.67,243.64,0.5]
[1732191802493,41.81423466,243.67,243.64,0.5]
[1732191802909,37.71023466,243.65,243.61,0.5]
[1732191803314,37.71023466,243.63,243.59,0.5]
[1732191803522,37.71023466,243.6,243.57,0.5]
[1732191803713,37.71023466,243.6,243.55,0.5]
[1732191803916,27.2737,243.67,243.54,0.5]
[1732191803917,37.71023466,243.58,243.54,0.5]
[1732191804417,37.71023466,243.6,243.54,0.5]
[1732191804732,37.71023466,243.6,243.56,0.5]
[1732191804899,41.81503466,243.62,243.56,0.5]
[1732191805105,37.71023466,243.58,243.53,0.5]
[1732191805306,37.71023466,243.55,243.53,0.5]
[1732191806228,37.71023466,243.55,243.51,0.5]
[1732191806402,41.81623466,243.55,243.47,37.71023466]
[1732191806603,37.71023466,243.49,243.43,0.5]
[1732191806799,37.71023466,243.51,243.48,0.5]
[1732191807004,4.106,243.55,243.48,0.5]
[1732191807005,41.81623466,243.55,243.48,0.5]
[1732191807203,31.483,243.65,243.52,0.5]
[1732191807204,37.71023466,243.57,243.52,0.5]
[1732191808500,4.1057,243.56,243.52,0.5]
[1732191809198,37.71023466,243.61,243.57,0.5]
[1732191810335,37.71023466,243.65,243.6,0.5]
[1732191810538,4.1044,243.64,243.6,0.5]
[1732191810841,37.71023466,243.65,243.6,0.5]
[1732191811131,37.71023466,243.63,243.6,0.5]
[1732191811340,37.71023466,243.63,243.55,0.5]
[1732191811506,4.1042,243.65,243.58,0.5]
[1732191811507,37.71023466,243.61,243.58,0.5]
[1732191811911,37.71023466,243.63,243.58,0.5]
[1732191812417,41.81493466,243.63,243.58,0.5]
[1732191812824,41.81453466,243.65,243.62,0.5]
[1732191813134,37.71023466,243.63,243.55,0.5]
[1732191813342,37.71023466,243.61,243.58,0.5]
[1732191813728,37.71023466,243.63,243.55,38.21023466]
[1732191813928,37.71023466,243.63,243.58,0.5]
[1732191814612,23.27118679,243.66,243.61,0.5]
[1732191815019,23.27118679,243.64,243.57,0.5]
[1732191815231,23.27118679,243.62,243.55,0.5]
[1732191815435,23.27118679,243.62,243.6,0.5]
[1732191815844,23.27118679,243.64,243.58,0.5]
[1732191816215,23.27118679,243.64,243.59,0.5]
[1732191816539,4.1045,243.63,243.57,0.5]
[1732191816853,23.27118679,243.6,243.52,0.5]
[1732191817038,23.27118679,243.58,243.5,0.5]
[1732191817245,23.27118679,243.58,243.49,33.53838679]
[1732191817246,23.27118679,243.58,243.52,0.5]
[1732191817547,23.776884,243.62,243.52,0.5]
[1732191817724,23.776884,243.62,243.42,12.8831]
[1732191817725,23.27118679,243.58,243.5,1.0]
[1732191817924,23.776884,243.62,243.5,1.0]
[1732191817925,23.27118679,243.56,243.5,1.0]
[1732191818638,23.27118679,243.54,243.5,0.5]
[1732191819135,23.27118679,243.54,243.48,0.5]
[1732191819331,23.27118679,243.54,243.5,0.5]
[1732191819533,23.27118679,243.52,243.46,1.0]
[1732191819741,23.27118679,243.54,243.48,0.5]
[1732191820255,27.37698679,243.56,243.49,0.5]
[1732191820432,27.37698679,243.56,243.5,0.5]
[1732191820633,27.37698679,243.56,243.48,0.5]
[1732191820836,23.27118679,243.54,243.5,0.5]
[1732191821035,23.27118679,243.54,243.48,0.5]
[1732191821453,23.27118679,243.54,243.5,0.5]
[1732191821641,23.27118679,243.54,243.47,23.77118679]
[1732191821642,23.27118679,243.6,243.54,1.0]
[1732191822060,4.1047,243.62,243.56,1.0]
[1732191822254,12.2326,243.69,243.59,23.27118679]
[1732191822255,23.27118679,243.66,243.59,23.27118679]
[1732191822562,23.27118679,243.66,243.6,0.5]
[1732191822931,4.1042,243.65,243.6,0.5]
[1732191823134,39.67599779,243.7,243.65,1.0]
[1732191823334,16.404811,243.7,243.65,1.0]
[1732191823535,20.508211,243.7,243.65,1.0]
[1732191823732,4.1034,243.7,243.65,0.5]
[1732191824357,4.1034,243.7,243.65,1.0]
[1732191824757,4.1034,243.7,243.65,0.5]
[1732191826082,23.27118679,243.74,243.68,0.5]
[1732191826456,23.27118679,243.76,243.68,1.0]
[1732191826656,23.27118679,243.76,243.69,23.27118679]
[1732191826882,23.27118679,243.76,243.68,1.0]
[1732191827068,23.27118679,243.76,243.7,0.5]
[1732191827671,4.1025,243.75,243.7,0.5]
[1732191827875,23.27118679,243.74,243.7,0.5]
[1732191828174,4.1025,243.75,243.68,1.0]
[1732191828376,27.37368679,243.75,243.7,0.5]
[1732191828791,27.37368679,243.75,243.68,1.0]
[1732191828965,23.27118679,243.75,243.71,0.5]
[1732191829278,4.1023,243.77,243.7,23.77118679]
[1732191829480,23.27118679,243.79,243.72,23.77118679]
[1732191829692,23.27118679,243.79,243.72,0.5]
[1732191830064,23.27118679,243.79,243.71,0.5]
[1732191830379,23.27118679,243.79,243.73,0.5]
[1732191830593,23.27118679,243.79,243.75,0.5]
[1732191830979,23.27118679,243.79,243.73,1.0]
[1732191831171,23.27118679,243.79,243.73,0.5]
[1732191831371,4.101,243.84,243.75,1.0]
[1732191831568,23.27118679,243.83,243.75,1.0]
[1732191831762,23.27118679,243.81,243.75,0.5]
[1732191832286,23.27118679,243.85,243.77,0.5]
[1732191835699,23.27118679,243.91,243.87,1.0]
[1732191835997,23.27118679,243.91,243.83,23.27118679]
[1732191835998,23.27118679,244.06,243.95,0.5]
[1732191836193,24.8399,244.15,243.9,53.43878679]
[1732191836194,23.27118679,244.02,243.97,1.0]
[1732191836496,23.27118679,244.02,243.97,0.5]
[1732191836672,23.27118679,244.02,243.95,1.0]
[1732191836870,27.36928679,244.02,243.95,1.0]
[1732191837175,23.27118679,244.06,243.99,0.5]
[1732191837388,23.27118679,244.06,243.98,23.77118679]
[1732191837389,23.27118679,244.02,243.95,0.5]
[1732191837595,23.27118679,244.02,243.98,0.5]
[1732191838093,23.27118679,244.04,243.98,1.0]
[1732191838596,23.27118679,244.02,243.94,1.0]
[1732191839194,10.2418,244.1,243.94,1.0]
[1732191839195,23.776884,244.1,243.99,0.5]
[1732191839404,23.27118679,244.02,243.97,0.5]
[1732191839587,23.27118679,244.0,243.95,1.0]
[1732191840114,23.27118679,244.0,243.97,0.5]
[1732191840581,23.27118679,244.0,243.95,0.5]
[1732191840782,23.27118679,244.02,243.97,0.5]
[1732191841007,23.27118679,244.04,243.97,1.0]
[1732191841220,23.27118679,244.04,243.99,0.5]
[1732191841389,27.36888679,244.04,244.0,0.5]
[1732191842190,4.0968,244.09,244.01,0.5]
[1732191842408,23.27118679,244.06,244.02,0.5]
[1732191842591,23.27118679,244.04,243.92,0.5]
[1732191842801,23.27118679,243.97,243.94,0.5]
[1732191843005,23.27118679,243.99,243.95,0.5]
[1732191844303,23.27118679,244.01,243.98,0.5]
[1732191845219,4.0976,244.05,243.98,0.5]
[1732191845220,23.27118679,244.06,244.02,0.5]
[1732191845396,23.27118679,244.06,244.0,0.5]
[1732191845397,23.27118679,244.06,244.0,1.0]
[1732191845598,23.27118679,244.06,244.04,1.0]
[1732191845794,23.27118679,244.06,243.96,1.0]
[1732191846122,23.27118679,243.99,243.94,1.0]
[1732191846410,23.27118679,243.97,243.96,0.5]
[1732191846938,4.07455772,244.06,243.98,0.5]
[1732191846939,23.27118679,243.99,243.98,0.5]
[1732191847089,23.27118679,244.01,244.0,0.5]
[1732191847288,23.27118679,244.01,243.96,0.5]
[1732191847488,23.27118679,243.99,243.98,1.0]
[1732191848118,23.27118679,244.04,244.03,1.0]
[1732191849110,23.27118679,244.06,244.05,1.0]
[1732191849599,23.27118679,244.1,244.09,1.0]
[1732191849800,23.27118679,244.1,244.01,10.2453]
[1732191849801,23.27118679,244.1,244.05,0.5]
[1732191850006,23.27118679,244.06,244.05,1.0]
[1732191850218,23.27118679,244.08,244.07,1.0]
[1732191850720,4.07455772,244.18,244.17,0.5]
[1732191850911,23.27118679,244.18,244.17,1.0]
[1732191851298,4.07455772,244.31,244.2,0.5]
[1732191851299,23.27118679,244.21,244.2,0.5]
[1732191853902,4.07455772,244.31,244.24,1.0]
[1732191853903,23.27118679,244.25,244.24,1.0]
[1732191854936,23.27118679,244.26,244.24,1.0]
[1732191855222,23.27118679,244.25,244.24,1.0]
[1732191855419,23.27118679,244.25,244.22,0.5]
[1732191855630,23.27118679,244.23,244.22,1.0]
[1732191855926,23.27118679,244.23,244.19,0.5]
[1732191856109,23.27118679,244.21,244.19,0.5]
[1732191856309,23.27118679,244.2,244.14,10.2397]
[1732191856511,23.27118679,244.15,244.08,10.2424]
[1732191856712,17.82408412,244.31,244.15,0.5]
[1732191856930,20.0,244.27,244.15,0.5]
[1732191857114,23.776884,244.24,244.15,0.5]
[1732191857635,23.776884,244.24,244.14,0.5]
[1732191857839,20.0,244.25,244.14,0.5]
[1732191857840,23.27118679,244.15,244.14,0.5]
[1732191858022,23.776884,244.14,244.09,0.5]
[1732191858208,23.776884,244.19,244.11,0.5]
[1732191858409,23.776884,244.19,244.09,0.5]
[1732191858709,23.776884,244.19,244.06,31.8001]
[1732191858710,23.776884,244.19,244.07,0.5]
[1732191858934,23.27118679,244.08,244.07,0.5]
[1732191859512,23.27118679,244.1,244.09,1.0]
[1732191859735,23.27118679,244.16,244.15,1.0]
[1732191860432,23.27118679,244.2,244.19,0.5]
[1732191860606,24.8315,244.35,244.21,1.0]
[1732191860607,23.27118679,244.22,244.21,1.0]
[1732191860811,23.27118679,244.24,244.23,0.5]
[1732191861011,23.27118679,244.24,244.23,1.0]
[1732191862728,23.27118679,244.24,244.23,0.5]
[1732191863235,23.776884,244.23,244.17,1.0]
[1732191863441,23.27118679,244.18,244.15,1.0]
[1732191863735,23.27118679,244.2,244.15,1.0]
[1732191863736,23.27118679,244.16,244.15,1.0]
[1732191863939,23.27118679,244.16,244.15,0.5]
[1732191864139,47.04807079,244.16,244.11,1.0]
[1732191864326,23.27118679,244.12,244.11,1.0]
[1732191864859,23.27118679,244.16,244.15,0.5]
[1732191865146,23.27118679,244.16,244.15,1.0]
[1732191866050,23.27118679,244.2,244.19,0.5]
[1732191866354,4.0941,244.25,244.21,0.5]
[1732191866857,4.0941,244.25,244.22,0.5]
[1732191867020,23.27118679,244.23,244.22,0.5]
[1732191868029,23.27118679,244.23,244.2,0.5]
[1732191868319,47.04807079,244.21,244.2,0.5]
[1732191868519,23.776884,244.2,244.19,0.5]
[1732191868719,23.27118679,244.21,244.2,1.0]
[1732191868943,23.27118679,244.21,244.2,0.5]
[1732191869147,23.27118679,244.21,244.2,1.0]
[1732191870226,23.27118679,244.21,244.2,0.5]
[1732191870450,23.27118679,244.21,244.18,0.5]
[1732191870451,27.36608679,244.21,244.18,0.5]
[1732191870757,23.27118679,244.19,244.18,0.5]
[1732191871145,23.27118679,244.19,244.18,1.0]
[1732191871522,23.27118679,244.21,244.2,1.0]
[1732191873341,0.5,243.88,243.68,13.0492]
[1732191873646,0.5,243.88,243.69,1.5532371]
[1732191873647,23.27118679,243.77,243.69,1.5532371]
[1732191873848,16.69938537,243.8,243.69,1.5532371]
[1732191874043,23.27118679,243.79,243.69,24.20914661]
[1732191874241,23.27118679,243.81,243.71,23.27118679]
[1732191874439,23.27118679,243.77,243.72,10.2576]
[1732191874642,23.27118679,243.75,243.72,10.2576]
[1732191875329,23.27118679,243.73,243.72,10.2576]
[1732191875948,23.27118679,243.75,243.72,10.2576]
[1732191876648,37.77850094,243.74,243.72,10.2576]
[1732191878745,0.5,243.8,243.72,10.2576]
[1732191878948,0.5,243.8,243.73,20.0]
[1732191878949,37.77850094,243.75,243.73,20.0]
[1732191879463,37.77850094,243.77,243.73,20.0]
[1732191879753,37.77850094,243.81,243.73,20.0]
[1732191879964,1.0,243.87,243.76,37.77850094]
[1732191880267,37.77850094,243.83,243.77,20.0]
[1732191880557,37.77850094,243.83,243.78,10.2551]
[1732191880739,37.77850094,243.85,243.78,10.2551]
[1732191880940,37.77850094,243.96,243.81,20.0]
[1732191880941,37.77850094,243.89,243.81,20.0]
[1732191881142,0.5,243.93,243.78,10.2551]
[1732191881143,37.77850094,243.93,243.84,37.77850094]
[1732191881342,12.8882,244.09,243.87,20.0]
[1732191881343,37.77850094,243.95,243.87,20.0]
[1732191881848,37.77850094,243.89,243.87,20.0]
[1732191882063,37.77850094,243.89,243.81,20.0]
[1732191882362,0.5,243.92,243.79,20.0]
[1732191882363,37.77850094,243.87,243.79,20.0]
[1732191882756,37.77850094,243.87,243.8,14.356]
[1732191883264,37.77850094,243.87,243.81,20.0]
[1732191883449,37.77850094,243.89,243.81,20.0]
[1732191884052,37.77850094,243.89,243.83,20.0]
[1732191884361,37.77850094,243.89,243.83,5.77724492]
[1732191884560,37.77850094,243.89,243.82,37.77850094]
[1732191884759,0.5,243.92,243.82,37.77850094]
[1732191885077,0.5,243.92,243.75,20.5128]
[1732191885078,37.77850094,243.84,243.76,52.13670094]
[1732191885747,37.77850094,243.86,243.78,37.77850094]
[1732191886163,37.77850094,243.86,243.79,20.0]
[1732191886383,1.0,243.93,243.8,37.77850094]
[1732191886384,37.77850094,243.88,243.8,37.77850094]
[1732191886666,37.77850094,243.88,243.81,20.0]
[1732191887249,0.5,243.91,243.76,34.8701]
[1732191887250,37.77850094,243.86,243.79,20.0]
[1732191887553,37.77850094,243.86,243.83,20.0]
[1732191887974,0.5,243.91,243.83,20.0]
[1732191888268,37.77850094,243.9,243.83,20.0]
[1732191888444,37.77850094,243.92,243.84,37.77850094]
[1732191888645,5.88884396,243.96,243.88,37.77850094]
[1732191888646,43.1673449,243.96,243.88,37.77850094]
[1732191888847,37.77850094,243.96,243.89,20.0]
[1732191889068,37.77850094,243.94,243.89,20.0]
[1732191889245,37.77850094,243.94,243.88,10.2505]
[1732191889451,37.77850094,243.92,243.89,20.0]
[1732191889658,37.77850094,243.9,243.88,10.2505]
[1732191889852,38.27850094,243.9,243.88,10.2505]
[1732191890058,37.77850094,243.9,243.88,10.2505]
[1732191890561,38.27850094,243.9,243.85,4.1008]
[1732191890765,37.77850094,243.86,243.85,4.1008]
[1732191890972,37.77850094,243.88,243.85,4.1008]
[1732191892674,37.77850094,243.86,243.84,10.2526]
[1732191893373,37.77850094,243.86,243.79,14.3565]
[1732191893374,0.5,243.85,243.79,14.3565]
[1732191893550,0.5,243.78,243.73,10.2569]
[1732191893756,37.77850094,243.74,243.73,10.2569]
[1732191894055,37.77850094,243.76,243.73,14.3598]
[1732191894284,0.5,243.79,243.73,14.3598]
[1732191894285,37.77850094,243.78,243.73,14.3598]
[1732191894952,37.77850094,243.78,243.73,10.2569]
[1732191896647,0.5,243.8,243.73,10.2569]
[1732191896848,23.24158346,243.79,243.72,20.0]
[1732191897652,23.24158346,243.79,243.71,20.0]
[1732191897852,23.24158346,243.79,243.72,14.3606]
[1732191898075,23.24158346,243.79,243.73,20.0]
[1732191898773,23.24158346,243.81,243.73,43.24158346]
[1732191898973,23.24158346,243.75,243.73,20.0]
[1732191899180,23.24158346,243.75,243.72,14.3606]
[1732191899377,23.24158346,243.77,243.72,14.3606]
[1732191899588,23.24158346,243.79,243.72,14.3606]
[1732191899963,23.74158346,243.79,243.72,14.3606]
[1732191900273,23.24158346,243.73,243.72,14.3606]
[1732191900468,23.24158346,243.77,243.72,14.3606]
[1732191900780,23.24158346,243.73,243.72,14.3606]
[1732191900978,23.24158346,243.77,243.72,14.3606]
[1732191901277,5.38884396,243.79,243.72,37.60218346]
[1732191901587,5.38884396,243.79,243.72,14.3606]
[1732191901789,23.24158346,243.84,243.76,23.24158346]
[1732191901961,5.38884396,243.85,243.78,23.24158346]
[1732191902286,5.38884396,243.85,243.77,34.3577]
[1732191902470,23.74158346,243.84,243.77,34.3577]
[1732191902780,23.24158346,243.86,243.78,23.24158346]
[1732191902988,23.24158346,243.86,243.77,54.8688]
[1732191902989,23.24158346,243.84,243.77,54.8688]
[1732191903361,23.74158346,243.84,243.77,54.8688]
[1732191903559,0.5,243.88,243.77,54.8688]
[1732191903560,23.24158346,243.82,243.77,54.8688]
[1732191903867,0.5,243.86,243.77,54.8688]
[1732191903868,23.24158346,243.84,243.77,54.8688]
[1732191904066,0.5,243.93,243.82,20.0]
[1732191904257,23.24158346,243.89,243.82,20.0]
[1732191904761,23.24158346,243.91,243.82,20.0]
[1732191904963,23.24158346,243.93,243.85,23.24158346]
[1732191905267,23.24158346,243.93,243.78,12.1256]
[1732191905268,23.24158346,243.93,243.86,20.0]
[1732191905470,24.24158346,243.93,243.86,20.0]
[1732191905683,13.0784,244.01,243.81,20.0]
[1732191905684,23.24158346,243.87,243.81,20.0]
[1732191906063,23.24158346,243.89,243.83,20.0]
[1732191906262,23.24158346,243.91,243.83,20.0]
[1732191906460,23.74158346,243.89,243.83,20.0]
[1732191906783,23.24158346,243.91,243.83,20.0]
[1732191907474,23.24158346,243.91,243.85,20.0]
[1732191907793,23.24158346,243.91,243.84,14.3536]
[1732191907998,23.24158346,243.91,243.85,20.0]
[1732191908163,23.24158346,243.89,243.85,20.0]
[1732191908363,0.5,243.88,243.84,14.3536]
[1732191908593,23.24158346,243.86,243.84,14.3536]
[1732191909266,23.74158346,243.86,243.84,14.3536]
[1732191909466,0.5,243.8,243.73,4.1029]
[1732191909783,0.5,243.79,243.73,4.1029]
[1732191909987,0.5,243.79,243.73,14.3601]
[1732191910192,0.5,243.81,243.73,10.2572]
[1732191910193,23.24158346,243.74,243.73,10.2572]
[1732191910370,23.24158346,243.74,243.68,4.1036]
[1732191910371,1.0,243.71,243.68,4.1036]
[1732191910567,1.0,243.71,243.67,10.2595]
[1732191910568,23.74158346,243.69,243.67,10.2595]
[1732191910863,0.5,243.66,243.61,10.2621]
[1732191911077,0.5,243.63,243.62,0.93822932]
[1732191911493,23.24158346,243.65,243.62,0.93822932]
[1732191911673,0.5,243.63,243.62,0.93822932]
[1732191911991,24.24158346,243.63,243.62,0.93822932]
[1732191912173,48.01846746,243.63,243.62,0.93822932]
[1732191912366,0.5,243.56,243.52,4.1063]
[1732191912571,23.74158346,243.54,243.5,4.1067]
[1732191912764,23.24158346,243.52,243.5,4.1067]
[1732191913095,23.74158346,243.54,243.5,14.3736]
[1732191913290,0.5,243.49,243.45,4.1076]
[1732191913478,0.5,243.49,243.44,10.2693]
[1732191913479,0.5,243.45,243.44,10.2693]
[1732191913867,0.5,243.45,243.38,10.2718]
[1732191913868,0.5,243.43,243.38,10.2718]
[1732191914077,23.24158346,243.39,243.38,10.2718]
[1732191914367,0.5,243.34,243.25,23.24158346]
[1732191914572,0.5,243.36,243.21,23.24158346]
[1732191914573,23.74158346,243.3,243.21,23.24158346]
[1732191914765,37.9220361,243.29,243.21,37.9220361]
[1732191914970,38.4220361,243.36,243.28,37.9220361]
[1732191915270,37.9220361,243.29,243.2,34.9506]
[1732191915480,0.5,243.28,243.2,14.3914]
[1732191915690,38.4220361,243.29,243.21,37.9220361]
[1732191915691,37.9220361,243.29,243.21,37.9220361]
[1732191915867,37.9220361,243.34,243.27,14.3872]
[1732191916068,0.5,243.29,243.27,14.3872]
[1732191916295,0.5,243.25,243.2,10.2794]
[1732191916478,38.4220361,243.26,243.2,10.2794]
[1732191916794,38.4220361,243.28,243.2,10.2794]
[1732191916982,4.84992174,243.44,243.2,10.2794]
[1732191916983,0.5,243.34,243.2,10.2794]
[1732191917190,0.5,243.38,243.29,37.9220361]
[1732191917364,0.5,243.34,243.27,37.9220361]
[1732191917563,38.4220361,243.35,243.28,20.0]
[1732191917777,0.5,243.34,243.28,20.0]
[1732191917983,50.6894361,243.48,243.3,37.9220361]
[1732191917984,0.5,243.36,243.3,37.9220361]
[1732191918294,0.5,243.41,243.34,37.9220361]
[1732191918511,0.94068122,243.4,243.34,37.9220361]
[1732191918802,0.5,243.35,243.31,20.0]
[1732191918984,0.5,243.38,243.3,57.9220361]
[1732191919367,0.5,243.38,243.34,37.9220361]
[1732191919575,0.5,243.38,243.32,37.9220361]
[1732191919767,1.44068122,243.4,243.34,37.9220361]
[1732191920080,0.94068122,243.4,243.38,37.9220361]
[1732191920878,0.94068122,243.4,243.39,20.0]
[1732191921773,0.94068122,243.4,243.36,57.9220361]
[1732191922199,0.94068122,243.4,243.38,57.9220361]
[1732191922377,1.44068122,243.4,243.37,14.3813]
[1732191922773,38.4220361,243.38,243.37,10.2724]
[1732191923080,0.5,243.38,243.37,10.2724]
[1732191923272,0.5,243.34,243.32,4.1096]
[1732191923603,1.0,243.34,243.3,14.3851]
[1732191923807,37.9220361,243.36,243.3,14.3851]
[1732191923808,0.5,243.35,243.3,52.3071361]
[1732191923980,13.1480411,243.75,243.38,0.5]
[1732191924181,44.7325,243.77,243.31,44.82073077]
[1732191924182,37.9220361,243.68,243.59,37.9220361]
[1732191924384,37.9220361,243.66,243.57,37.9220361]
[1732191924792,37.9220361,243.64,243.55,37.9220361]
[1732191925097,37.9220361,243.64,243.57,37.9220361]
[1732191925298,14.6,243.83,243.62,37.9220361]
[1732191925499,4.1012,243.83,243.69,37.9220361]
[1732191925806,37.9220361,243.79,243.69,37.9220361]
[1732191926002,37.9220361,243.79,243.71,37.9220361]
[1732191926208,37.9220361,243.83,243.75,37.9220361]
[1732191926796,37.9220361,243.87,243.79,37.9220361]
[1732191927003,4.0978,244.03,243.86,37.9220361]
[1732191927175,37.9220361,244.02,243.93,37.9220361]
[1732191927607,0.5,244.11,243.84,37.9220361]
[1732191927608,37.9220361,244.04,243.97,37.9220361]
[1732191927776,37.9220361,244.04,243.84,37.9220361]
[1732191927777,37.9220361,244.08,243.99,37.9220361]
[1732191927980,37.9220361,244.04,243.95,37.9220361]
[1732191928197,4.096,244.14,243.99,37.9220361]
[1732191928198,37.9220361,244.08,243.99,37.9220361]
[1732191928408,37.9220361,244.08,244.01,37.9220361]
[1732191928678,37.9220361,244.12,244.03,37.9220361]
[1732191929082,16.372935,244.24,244.12,20.0]
[1732191929280,37.9220361,244.29,244.2,37.9220361]
[1732191930093,37.9220361,244.25,244.16,37.9220361]
[1732191931225,37.9220361,244.17,244.12,10.2405]
[1732191931401,37.9220361,244.13,244.05,10.2437]
[1732191931604,37.9220361,244.16,244.07,37.9220361]
[1732191932006,23.776884,244.15,244.05,14.3412]
[1732191932205,37.9220361,244.16,244.07,37.9220361]
[1732191932409,23.776884,244.13,244.05,37.9220361]
[1732191932795,37.9220361,244.14,244.05,37.9220361]
[1732191933124,23.776884,244.25,244.09,37.9220361]
[1732191933294,37.9220361,244.2,244.13,37.9220361]
[1732191933816,37.9220361,244.2,244.11,37.9220361]
[1732191934025,37.9220361,244.2,243.98,14.3453]
[1732191934026,37.9220361,244.18,244.09,37.9220361]
[1732191934212,37.9220361,244.18,244.1,4.0966]
[1732191934400,37.9220361,244.18,244.09,37.9220361]
[1732191934604,167.0,244.64,244.09,37.9220361]
[1732191934605,16.860631,244.44,244.18,20.0]
[1732191934799,39.4220361,244.37,244.26,37.9220361]